bitfinex/quotes_SOLUSD_20241205
["timestamp","ask_amount","ask_price","bid_price","bid_amount"]
[1733436344259,0.79987697,234.44,234.3,293.93709676]
[1733436344457,1.05050231,234.47,234.3,293.93709676]
[1733436344866,1.05050231,234.47,234.31,8.36383349]
[1733436345154,1.05050231,234.47,234.32,23.776884]
[1733436345878,1.05050231,234.47,234.31,23.776884]
[1733436346077,0.2506,234.45,234.3,0.16021276]
[1733436346280,6.5581,234.43,234.3,0.16021276]
[1733436346480,0.80020102,234.42,234.3,0.16021276]
[1733436346860,6.5581,234.41,234.3,0.16021276]
[1733436347159,0.2506,234.39,234.3,0.16021276]
[1733436347366,0.80026608,234.38,234.3,0.16021276]
[1733436347771,0.2506,234.36,234.1,1.6072]
[1733436347982,0.2506,234.34,234.16,270.0]
[1733436348157,0.80052732,234.33,234.16,270.0]
[1733436348982,0.80052732,234.33,234.13,8.36383349]
[1733436349852,0.80052732,234.33,234.14,23.776884]
[1733436351850,0.80052732,234.33,234.16,23.776884]
[1733436352062,0.80035684,234.32,234.19,8.36383349]
[1733436352236,1.05088047,234.34,234.2,23.776884]
[1733436352952,1.05088047,234.34,234.21,8.36383349]
[1733436353162,0.2506,234.34,234.22,23.776884]
[1733436353326,6.3075,234.35,234.22,25.398684]
[1733436353534,6.3075,234.35,234.27,8.36383349]
[1733436353758,0.2506,234.39,234.3,23.776884]
[1733436354235,0.2506,234.39,234.29,23.776884]
[1733436355059,0.2506,234.39,234.31,8.36383349]
[1733436355264,0.2506,234.45,234.35,8.36383349]
[1733436355564,0.2506,234.45,234.36,23.776884]
[1733436358746,0.2506,234.45,234.36,293.776884]
[1733436359969,6.3036,234.47,234.37,13.10046216]
[1733436360282,6.3036,234.47,234.38,23.776884]
[1733436361049,0.2506,234.51,234.41,13.10046216]
[1733436361254,6.5166,234.52,234.44,23.776884]
[1733436361459,6.5166,234.7,234.44,23.776884]
[1733436361649,6.5166,234.68,234.44,23.776884]
[1733436361858,7.31613587,234.67,234.42,23.776884]
[1733436362538,6.3511,234.65,234.42,23.776884]
[1733436362749,6.3511,234.63,234.42,23.776884]
[1733436362958,7.15077766,234.62,234.34,23.76866216]
[1733436363258,6.3511,234.58,234.37,270.0]
[1733436363457,6.3511,234.56,234.34,13.10046216]
[1733436363663,0.79984914,234.55,234.33,1.546]
[1733436364460,0.1951,234.54,234.33,1.546]
[1733436364635,0.79980519,234.53,234.33,1.546]
[1733436364972,0.79980519,234.53,234.34,23.776884]
[1733436365168,0.79980519,234.53,234.37,43.776884]
[1733436365386,0.79980519,234.53,234.37,23.776884]
[1733436366470,0.79980519,234.53,234.39,23.776884]
[1733436366952,0.79980519,234.53,234.38,270.0]
[1733436366953,0.79980519,234.53,234.37,23.776884]
[1733436367376,0.79980519,234.53,234.35,23.776884]
[1733436367976,0.79980519,234.53,234.38,13.10046216]
[1733436368476,0.79980519,234.53,234.39,23.776884]
[1733436369078,0.79980519,234.53,234.37,23.776884]
[1733436369866,0.79980519,234.53,234.42,270.0]
[1733436370772,0.79980519,234.53,234.37,23.776884]
[1733436371879,0.79980519,234.53,234.41,23.776884]
[1733436372169,0.79980519,234.53,234.38,13.10046216]
[1733436372373,0.79980519,234.53,234.39,23.776884]
[1733436373159,0.79980519,234.53,234.38,23.776884]
[1733436373571,0.79980519,234.53,234.38,36.87734616]
[1733436373772,0.79980519,234.53,234.41,270.0]
[1733436375191,0.99478004,234.54,234.39,10.6659]
[1733436375379,0.99478004,234.54,234.4,23.776884]
[1733436375684,0.1951,234.54,234.4,36.87734616]
[1733436376455,0.1951,234.54,234.43,23.776884]
[1733436377980,0.7995433,234.53,234.42,23.776884]
[1733436378185,0.7995433,234.53,234.36,13.10046216]
[1733436378484,6.5478,234.43,234.12,13.10046216]
[1733436378666,23.776884,234.4,234.13,10.6776]
[1733436378860,23.776884,234.38,234.13,10.6776]
[1733436379081,0.80044474,234.37,234.13,10.6776]
[1733436379585,0.80044474,234.37,234.14,13.10046216]
[1733436379881,0.80044474,234.37,234.15,23.776884]
[1733436380965,0.80044474,234.37,234.17,23.776884]
[1733436381173,0.80031979,234.36,234.2,23.776884]
[1733436381364,0.80033158,234.4,234.2,23.776884]
[1733436383271,0.80033158,234.4,234.19,23.776884]
[1733436384183,0.80033158,234.4,234.17,23.776884]
[1733436384568,0.80033158,234.4,234.21,23.776884]
[1733436385086,0.80033158,234.4,234.19,23.776884]
[1733436386085,23.776884,234.39,234.17,23.776884]
[1733436386279,0.80043033,234.38,234.17,23.776884]
[1733436387267,0.1951,234.37,234.17,23.776884]
[1733436387492,0.80036968,234.36,234.17,23.776884]
[1733436387997,0.80036968,234.36,234.19,23.776884]
[1733436388156,0.80036968,234.36,234.19,293.776884]
[1733436389191,0.80036968,234.36,234.22,13.10046216]
[1733436389474,0.80036968,234.36,234.23,23.776884]
[1733436390496,0.80036968,234.36,234.22,23.776884]
[1733436392304,0.80036968,234.36,234.22,293.776884]
[1733436397195,0.80036968,234.36,234.23,13.10046216]
[1733436397398,0.80036968,234.36,234.24,23.776884]
[1733436400234,0.80036968,234.36,234.24,293.776884]
[1733436403793,0.1951,234.43,234.34,13.10046216]
[1733436403997,0.1951,234.43,234.35,13.10046216]
[1733436404216,6.0739,234.47,234.39,23.776884]
[1733436406917,0.79973818,234.57,234.39,23.776884]
[1733436406918,6.1696,234.52,234.39,23.776884]
[1733436407121,0.79967037,234.51,234.39,23.776884]
[1733436410127,0.79967037,234.51,234.4,13.10046216]
[1733436410512,0.79967037,234.51,234.41,23.776884]
[1733436412926,6.1696,234.52,234.43,13.10046216]
[1733436413115,6.1696,234.52,234.44,23.776884]
[1733436415530,0.1951,234.53,234.44,23.776884]
[1733436417204,6.4014,234.57,234.45,13.10046216]
[1733436417525,6.4014,234.57,234.47,36.87734616]
[1733436417705,6.4014,234.57,234.48,13.10046216]
[1733436417911,6.4014,234.57,234.49,23.776884]
[1733436419738,0.79938397,234.56,234.44,23.776884]
[1733436420027,0.79938397,234.56,234.42,23.776884]
[1733436421135,0.79938397,234.56,234.43,13.10046216]
[1733436421340,0.79938397,234.56,234.44,23.776884]
[1733436423630,0.79938397,234.56,234.41,13.10046216]
[1733436424410,0.79938397,234.56,234.43,13.10046216]
[1733436424810,0.79938397,234.56,234.44,23.776884]
[1733436425611,6.4014,234.57,234.46,23.776884]
[1733436426636,6.4014,234.57,234.46,293.776884]
[1733436426939,0.79944405,234.56,234.46,293.776884]
[1733436427438,0.79944405,234.56,234.46,23.776884]
[1733436428311,6.4014,234.57,234.46,23.776884]
[1733436429315,0.79938838,234.56,234.44,23.776884]
[1733436429515,0.79938838,234.56,234.39,23.76596216]
[1733436429730,0.79938838,234.56,234.39,13.10046216]
[1733436430412,0.79938838,234.56,234.41,13.10046216]
[1733436430925,0.79938838,234.56,234.42,23.776884]
[1733436432421,0.79938838,234.56,234.4,23.776884]
[1733436432653,0.79938838,234.56,234.38,36.87734616]
[1733436434026,0.79938838,234.56,234.38,306.87734616]
[1733436434745,0.79938838,234.56,234.38,293.776884]
[1733436435418,0.79938838,234.56,234.38,306.87734616]
[1733436436540,6.4014,234.57,234.38,306.87734616]
[1733436436729,0.798577,234.56,234.38,306.87734616]
[1733436438351,0.798577,234.56,234.41,23.776884]
[1733436441433,0.798577,234.56,234.41,293.776884]
[1733436442148,0.798577,234.56,234.38,13.10046216]
[1733436442451,6.6121,234.54,234.34,13.10046216]
[1733436442647,0.798577,234.53,234.36,13.10046216]
[1733436442830,0.798577,234.53,234.38,13.10046216]
[1733436443923,0.798577,234.53,234.39,23.776884]
[1733436444428,6.6121,234.54,234.39,23.776884]
[1733436444629,0.298577,234.53,234.39,23.776884]
[1733436445148,0.298577,234.53,234.41,23.776884]
[1733436448347,0.298577,234.53,234.39,23.776884]
[1733436448535,0.298577,234.53,234.39,24.41657626]
[1733436451332,0.298577,234.53,234.42,23.776884]
[1733436452124,0.298577,234.53,234.36,13.10046216]
[1733436453244,0.298577,234.53,234.37,0.63980524]
[1733436453932,6.5616,234.47,234.2,1.5416]
[1733436454126,6.5616,234.45,234.2,1.5416]
[1733436454339,0.1951,234.43,234.2,1.5416]
[1733436454537,6.5616,234.41,234.2,1.5416]
[1733436454749,6.5616,234.41,234.2,270.0]
[1733436454750,0.1951,234.39,234.2,270.0]
[1733436455064,0.298577,234.38,234.2,270.0]
[1733436456832,0.298577,234.38,234.21,23.776884]
[1733436457655,0.1951,234.36,234.13,1.5416]
[1733436457854,0.298577,234.35,234.13,1.5416]
[1733436458240,0.298577,234.35,234.14,13.10046216]
[1733436458960,0.298577,234.35,234.16,13.10046216]
[1733436459461,0.298577,234.35,234.17,23.776884]
[1733436460646,0.298577,234.35,234.2,23.776884]
[1733436461238,0.298577,234.35,234.19,23.776884]
[1733436464136,0.298577,234.35,234.21,23.776884]
[1733436464859,0.298577,234.35,234.19,23.776884]
[1733436467143,0.493677,234.36,234.23,23.776884]
[1733436467640,0.493677,234.36,234.25,23.776884]
[1733436468245,0.493677,234.36,234.23,23.776884]
[1733436471266,0.493677,234.36,234.26,23.776884]
[1733436471643,0.493677,234.36,234.18,13.10046216]
[1733436471858,0.493677,234.36,234.19,23.776884]
[1733436472159,0.493677,234.36,234.18,13.10046216]
[1733436473455,0.493677,234.36,234.19,23.776884]
[1733436474859,0.493677,234.36,234.21,23.776884]
[1733436474860,2.22647766,234.36,234.21,23.776884]
[1733436475064,0.493677,234.36,234.21,23.776884]
[1733436475464,0.493677,234.36,234.19,23.776884]
[1733436476473,0.493677,234.36,234.17,23.776884]
[1733436478242,0.493677,234.36,234.17,293.776884]
[1733436478445,2.23032627,234.36,234.17,293.776884]
[1733436480574,2.23032627,234.36,234.19,23.776884]
[1733436480944,2.23032627,234.36,234.17,293.776884]
[1733436482165,6.2425,234.35,234.17,293.776884]
[1733436482358,0.298577,234.34,234.17,293.776884]
[1733436482572,6.2425,234.32,234.17,23.776884]
[1733436482870,0.298577,234.31,234.17,23.776884]
[1733436486963,6.2129,234.29,234.08,1.6122]
[1733436487161,49.326884,234.35,234.06,17.6853008]
[1733436487162,0.1951,234.27,234.06,0.5121008]
[1733436487366,6.2129,234.25,234.06,0.5121008]
[1733436487562,0.298577,234.24,234.06,0.5121008]
[1733436487993,0.1951,234.23,234.06,0.5121008]
[1733436488166,6.2129,234.21,234.06,0.5121008]
[1733436488364,0.298577,234.2,234.06,0.5121008]
[1733436489075,0.1951,234.19,234.06,0.5121008]
[1733436489385,23.971984,234.16,234.06,0.5121008]
[1733436489571,0.298577,234.15,234.06,0.5121008]
[1733436490263,6.408,234.14,234.06,0.5121008]
[1733436490460,0.298577,234.13,234.06,0.5121008]
[1733436494085,6.408,234.14,234.06,0.5121008]
[1733436497187,0.298577,234.13,234.06,0.5121008]
[1733436498172,6.408,234.14,234.06,0.5121008]
[1733436498372,0.298577,234.13,234.06,0.5121008]
[1733436498968,6.408,234.14,234.06,0.5121008]
[1733436499290,0.298577,234.21,234.06,0.5121008]
[1733436499291,6.7735,234.2,234.06,0.5121008]
[1733436499475,0.298577,234.19,234.06,0.5121008]
[1733436501300,0.298577,234.19,234.06,24.2889848]
[1733436501593,6.7735,234.2,234.08,23.776884]
[1733436502387,6.7735,234.2,234.11,23.776884]
[1733436503194,6.7735,234.26,234.11,23.776884]
[1733436503383,0.298577,234.25,234.11,23.776884]
[1733436504480,0.298577,234.25,234.1,23.776884]
[1733436505090,6.7735,234.26,234.1,23.776884]
[1733436505289,6.7735,234.26,234.11,14.74797817]
[1733436505486,6.7735,234.26,234.14,23.776884]
[1733436505994,0.298577,234.25,234.1,23.776884]
[1733436506300,0.298577,234.25,234.09,23.776884]
[1733436507768,0.298577,234.25,234.11,23.776884]
[1733436508670,0.298577,234.25,234.09,23.776884]
[1733436509195,0.298577,234.25,234.09,293.776884]
[1733436510277,0.298577,234.25,234.1,13.14567817]
[1733436510494,0.298577,234.25,234.11,23.776884]
[1733436511979,0.298577,234.25,234.1,32.17946873]
[1733436513292,0.298577,234.25,234.12,23.776884]
[1733436513801,0.298577,234.25,234.11,23.776884]
[1733436515477,0.298577,234.25,234.1,23.776884]
[1733436517298,0.298577,234.25,234.09,23.776884]
[1733436518411,0.298577,234.25,234.06,0.5121008]
[1733436518618,6.6169,234.24,234.06,0.5121008]
[1733436518927,0.298577,234.23,234.06,0.5121008]
[1733436521423,6.6169,234.22,234.06,0.5121008]
[1733436521606,0.298577,234.21,234.06,0.5121008]
[1733436528431,0.1951,234.2,234.06,0.5121008]
[1733436528728,0.298577,234.19,234.06,0.5121008]
[1733436533839,0.493677,234.2,234.06,0.5121008]
[1733436536626,0.493677,234.2,234.06,8.91468553]
[1733436536822,0.493677,234.2,234.07,23.776884]
[1733436537945,0.1951,234.2,234.09,23.776884]
[1733436538115,0.1951,234.2,234.11,23.776884]
[1733436538314,6.4218,234.22,234.11,23.776884]
[1733436538817,0.1951,234.26,234.11,23.776884]
[1733436539126,0.1951,234.26,234.11,8.40258473]
[1733436539323,0.1951,234.26,234.12,23.776884]
[1733436539844,0.1951,234.26,234.14,23.776884]
[1733436540437,0.1951,234.26,234.12,23.776884]
[1733436543343,0.298577,234.25,234.1,23.776884]
[1733436545332,0.298577,234.25,234.08,23.776884]
[1733436545646,0.298577,234.25,234.06,32.69156953]
[1733436545851,0.298577,234.25,234.08,23.776884]
[1733436546657,6.6475,234.24,234.08,23.776884]
[1733436546827,0.298577,234.23,234.06,0.5121008]
[1733436549546,6.6475,234.21,234.06,0.5121008]
[1733436549753,0.298577,234.2,234.06,0.5121008]
[1733436550329,6.6475,234.18,234.06,0.5121008]
[1733436550536,0.298577,234.17,234.06,0.5121008]
[1733436550844,0.1951,234.16,234.06,0.5121008]
[1733436551050,0.298577,234.15,234.06,0.5121008]
[1733436551632,6.6475,234.14,234.06,0.5121008]
[1733436551838,0.298577,234.13,234.06,0.5121008]
[1733436556559,0.298577,234.13,234.07,0.298577]
[1733436558251,0.1951,234.12,234.07,0.298577]
[1733436558448,0.298577,234.11,234.07,0.298577]
[1733436563351,0.298577,234.11,234.06,0.5121008]
[1733436564362,0.298577,234.11,233.92,1.5442]
[1733436564567,0.298577,234.11,233.93,23.776884]
[1733436566981,23.776884,234.09,233.85,8.40258473]
[1733436567159,0.298577,234.08,233.85,8.40258473]
[1733436567582,0.1951,234.07,233.85,8.40258473]
[1733436567879,0.298577,234.06,233.85,8.40258473]
[1733436568284,23.776884,234.04,233.84,6.1671]
[1733436568572,0.298577,234.03,233.84,14.56968473]
[1733436569153,0.298577,234.03,233.84,6.1671]
[1733436569358,0.1951,234.02,233.83,1.621]
[1733436569557,0.298577,234.01,233.84,23.776884]
[1733436570986,0.493677,234.02,233.86,32.17946873]
[1733436571692,0.493677,234.02,233.89,23.776884]
[1733436572055,0.1951,234.02,233.89,23.776884]
[1733436572560,0.493677,234.02,233.89,23.776884]
[1733436573582,0.1951,234.02,233.89,23.776884]
[1733436574464,0.1951,234.02,233.87,23.776884]
[1733436577777,0.1951,234.02,233.86,23.776884]
[1733436580296,0.298577,234.01,233.84,23.776884]
[1733436580592,0.298577,234.01,233.83,1.621]
[1733436580789,6.077,234.0,233.83,1.621]
[1733436580984,0.298577,233.99,233.83,1.621]
[1733436581189,0.298577,233.99,233.79,6.2812]
[1733436581364,0.298577,233.99,233.78,271.6541]
[1733436581567,0.1951,233.98,233.78,1.6541]
[1733436581785,0.298577,233.97,233.78,1.6541]
[1733436584686,31.627,233.96,233.74,6.2812]
[1733436584874,6.2721,233.93,233.7,10.6972]
[1733436585200,24.075461,233.92,233.67,2.29562894]
[1733436585374,24.075461,233.92,233.7,8.40258473]
[1733436585721,0.1951,233.89,233.67,0.64152894]
[1733436585871,0.1951,233.87,233.64,8.40258473]
[1733436586078,0.298577,233.86,233.68,8.40258473]
[1733436586383,0.298577,233.86,233.67,8.40258473]
[1733436586783,0.298577,233.86,233.68,0.64164104]
[1733436587098,0.298577,233.86,233.7,23.776884]
[1733436587786,0.493677,233.87,233.7,293.776884]
[1733436590698,0.493677,233.87,233.7,23.776884]
[1733436593690,0.493677,233.87,233.7,293.776884]
[1733436595106,0.493677,233.87,233.63,83.0643]
[1733436595281,0.493677,233.87,233.63,10.06688473]
[1733436595282,49.820561,233.87,233.63,10.06688473]
[1733436595485,26.043677,233.87,233.63,10.06688473]
[1733436595924,0.1951,233.84,233.63,1.6643]
[1733436596209,0.298577,233.83,233.63,1.6643]
[1733436596380,0.298577,233.83,233.59,9.55643043]
[1733436597290,0.298577,233.83,233.59,1.1538457]
[1733436597495,23.776884,233.81,233.59,0.5121008]
[1733436597716,0.1951,233.79,233.59,0.5121008]
[1733436598010,0.298577,233.78,233.6,8.40258473]
[1733436598207,0.298577,233.78,233.59,1.15399736]
[1733436599196,0.298577,233.78,233.6,23.776884]
[1733436600916,6.464,233.75,233.59,0.5121008]
[1733436601114,0.1951,233.73,233.59,0.5121008]
[1733436601288,0.298577,233.72,233.59,0.5121008]
[1733436602293,23.776884,233.7,233.59,0.5121008]
[1733436602523,0.298577,233.69,233.59,0.5121008]
[1733436602814,0.1951,233.68,233.59,0.5121008]
[1733436603118,0.298577,233.67,233.59,0.5121008]
[1733436603288,0.298577,233.67,233.47,1.5548]
[1733436603289,6.464,233.66,233.42,12.2648]
[1733436603493,0.298577,233.65,233.43,0.64229671]
[1733436604119,0.298577,233.65,233.45,270.0]
[1733436604319,0.1951,233.64,233.42,12.2648]
[1733436604622,0.298577,233.63,233.42,1.5548]
[1733436605307,6.1871,233.62,233.42,1.5548]
[1733436605513,0.298577,233.61,233.42,1.5548]
[1733436605698,0.298577,233.61,233.38,19.11448473]
[1733436606321,0.298577,233.61,233.37,2.30248762]
[1733436606322,0.1951,233.6,233.37,2.30248762]
[1733436606494,0.298577,233.59,233.37,10.70507235]
[1733436606900,0.298577,233.59,233.43,8.40258473]
[1733436607411,0.493677,233.6,233.43,8.40258473]
[1733436607797,0.493677,233.6,233.44,23.776884]
[1733436609613,0.493677,233.6,233.43,8.40258473]
[1733436609614,0.493677,233.6,233.42,23.776884]
[1733436611008,0.493677,233.6,233.37,12.3724]
[1733436611890,23.776884,233.58,233.37,1.6601]
[1733436612099,6.3822,233.56,233.35,0.5121008]
[1733436612307,0.298577,233.55,233.35,0.5121008]
[1733436612618,24.075461,233.55,233.35,0.5121008]
[1733436613019,23.776884,233.53,233.35,0.5121008]
[1733436613197,6.3822,233.51,233.35,0.5121008]
[1733436613520,0.1951,233.48,233.35,0.5121008]
[1733436613692,6.1871,233.46,233.35,0.5121008]
[1733436613896,0.298577,233.45,233.35,0.5121008]
[1733436614310,24.075461,233.45,233.35,0.5121008]
[1733436614595,0.298577,233.45,233.35,0.5121008]
[1733436614796,24.075461,233.45,233.35,0.5121008]
[1733436615692,0.298577,233.45,233.35,0.5121008]
[1733436616200,6.1871,233.46,233.35,24.2889848]
[1733436616510,0.298577,233.45,233.35,24.2889848]
[1733436617798,0.298577,233.45,233.35,0.5121008]
[1733436620607,24.075461,233.45,233.35,0.5121008]
[1733436621408,0.1951,233.44,233.35,0.5121008]
[1733436621712,0.298577,233.43,233.35,0.5121008]
[1733436622318,6.1871,233.42,233.35,0.5121008]
[1733436622533,24.075461,233.41,233.35,0.5121008]
[1733436623224,24.075461,233.41,233.19,1.6601]
[1733436623523,0.1951,233.4,233.19,1.6601]
[1733436623705,0.298577,233.39,233.19,1.6601]
[1733436623903,6.1871,233.38,233.14,14.88606101]
[1733436624219,0.1951,233.36,233.14,14.88606101]
[1733436624426,0.298577,233.35,233.16,13.22596101]
[1733436624727,0.298577,233.35,233.14,1.6601]
[1733436624896,0.298577,233.35,233.24,13.22596101]
[1733436625092,0.1951,233.36,233.24,13.22596101]
[1733436625392,0.493677,233.36,233.24,13.22596101]
[1733436625896,0.493677,233.36,233.25,23.776884]
[1733436627628,6.1871,233.38,233.27,23.776884]
[1733436629435,0.1951,233.42,233.29,23.776884]
[1733436629945,0.298577,233.44,233.32,13.22596101]
[1733436630246,0.298577,233.44,233.33,23.776884]
[1733436630408,0.298577,233.44,233.31,23.776884]
[1733436630841,0.298577,233.44,233.25,23.776884]
[1733436632751,0.1951,233.43,233.23,23.776884]
[1733436633047,0.298577,233.42,233.21,23.776884]
[1733436634943,0.298577,233.42,233.27,23.776884]
[1733436635243,0.493677,233.43,233.28,13.22596101]
[1733436635443,0.493677,233.43,233.29,23.776884]
[1733436640845,0.493677,233.43,233.28,23.776884]
[1733436641058,0.298577,233.43,233.3,1.5324]
[1733436641349,0.1951,233.48,233.38,23.776884]
[1733436641557,0.1951,233.48,233.38,24.41936788]
[1733436641731,0.1951,233.48,233.38,23.776884]
[1733436642136,6.097,233.51,233.4,23.776884]
[1733436642746,0.1951,233.54,233.43,13.22596101]
[1733436642937,0.1951,233.54,233.44,23.776884]
[1733436643352,6.097,233.56,233.44,23.776884]
[1733436644038,0.298577,233.55,233.42,23.776884]
[1733436644248,0.298577,233.55,233.42,293.776884]
[1733436644437,6.097,233.56,233.43,13.22596101]
[1733436644650,6.097,233.56,233.44,23.776884]
[1733436647761,6.097,233.56,233.46,13.22596101]
[1733436647970,0.1951,233.59,233.47,23.776884]
[1733436648839,0.1951,233.59,233.48,13.22596101]
[1733436649437,0.1951,233.59,233.49,23.776884]
[1733436650554,0.1951,233.59,233.49,293.776884]
[1733436652762,6.2132,233.62,233.49,293.776884]
[1733436652967,0.1951,233.64,233.51,23.776884]
[1733436653855,0.1951,233.64,233.53,23.776884]
[1733436656339,0.1951,233.64,233.55,23.776884]
[1733436656965,6.2132,233.67,233.54,13.22596101]
[1733436657139,6.2132,233.67,233.56,13.22596101]
[1733436657342,0.1951,233.69,233.57,23.776884]
[1733436657640,0.1951,233.69,233.58,13.22596101]
[1733436657843,0.1951,233.69,233.59,23.776884]
[1733436658243,6.4929,233.73,233.59,23.776884]
[1733436659949,6.4929,233.73,233.62,23.776884]
[1733436661976,6.4929,233.73,233.6,23.776884]
[1733436662472,0.298577,233.72,233.52,13.22596101]
[1733436662666,0.298577,233.72,233.51,25.43186101]
[1733436662971,6.4929,233.73,233.57,13.22596101]
[1733436663171,6.4929,233.73,233.56,13.22596101]
[1733436663471,6.4929,233.73,233.57,270.0]
[1733436663644,6.4929,233.73,233.57,283.22596101]
[1733436663961,6.4929,233.73,233.6,23.776884]
[1733436664667,6.4929,233.73,233.59,23.776884]
[1733436664881,0.298577,233.72,233.57,37.00284501]
[1733436665171,6.4929,233.73,233.58,13.22596101]
[1733436665343,6.4929,233.73,233.59,23.776884]
[1733436665853,0.298577,233.72,233.59,23.776884]
[1733436666045,0.298577,233.72,233.52,13.22596101]
[1733436666248,0.298577,233.72,233.51,1.5002]
[1733436666459,0.298577,233.72,233.51,14.72616101]
[1733436666757,0.298577,233.72,233.51,1.5002]
[1733436666952,0.1951,233.71,233.52,270.0]
[1733436667163,0.298577,233.7,233.52,270.0]
[1733436667366,0.298577,233.7,233.48,13.22596101]
[1733436668159,0.298577,233.7,233.5,13.22596101]
[1733436668576,0.493677,233.71,233.53,13.22596101]
[1733436668877,0.493677,233.71,233.54,23.776884]
[1733436669251,0.493677,233.71,233.52,23.776884]
[1733436670348,0.493677,233.71,233.52,293.776884]
[1733436670585,0.493677,233.71,233.52,270.0]
[1733436670768,0.493677,233.71,233.49,23.776884]
[1733436671675,0.493677,233.71,233.51,23.776884]
[1733436673058,0.493677,233.71,233.52,13.22596101]
[1733436673253,0.493677,233.71,233.5,37.00284501]
[1733436673661,0.493677,233.71,233.5,307.00284501]
[1733436676189,0.493677,233.71,233.5,37.00284501]
[1733436676564,23.776884,233.72,233.5,37.00284501]
[1733436676882,6.4929,233.73,233.55,23.776884]
[1733436678168,6.4929,233.73,233.49,23.776884]
[1733436678369,23.776884,233.72,233.47,13.22596101]
[1733436678580,23.776884,233.7,233.47,13.22596101]
[1733436678779,23.776884,233.7,233.49,13.22596101]
[1733436678969,23.776884,233.7,233.5,0.64207745]
[1733436679170,6.634,233.71,233.52,270.0]
[1733436680099,6.634,233.71,233.53,23.776884]
[1733436681179,6.634,233.71,233.52,23.776884]
[1733436681377,6.634,233.71,233.5,23.776884]
[1733436681983,6.5212,233.69,233.46,1.5518]
[1733436682184,1.74901107,233.75,233.46,1.5518]
[1733436682185,23.776884,233.66,233.46,1.5518]
[1733436682790,6.5212,233.65,233.43,13.22596101]
[1733436683171,6.5212,233.65,233.46,270.0]
[1733436683379,23.776884,233.64,233.46,270.0]
[1733436683575,23.776884,233.62,233.46,270.0]
[1733436685488,6.5212,233.63,233.46,270.0]
[1733436685671,6.5212,233.63,233.46,23.776884]
[1733436685870,6.5212,233.63,233.47,13.22596101]
[1733436686091,6.5212,233.63,233.5,23.776884]
[1733436686967,6.5212,233.63,233.45,10.7087]
[1733436686968,6.5212,233.63,233.45,13.22596101]
[1733436687175,6.5212,233.63,233.46,23.776884]
[1733436687694,23.776884,233.62,233.43,13.22596101]
[1733436688583,23.776884,233.62,233.44,270.0]
[1733436689078,23.776884,233.62,233.42,13.22596101]
[1733436689676,23.776884,233.62,233.42,13.86822712]
[1733436691481,23.776884,233.62,233.39,5.897]
[1733436691482,23.776884,233.62,233.41,23.776884]
[1733436692011,23.776884,233.62,233.44,270.0]
[1733436692574,6.1119,233.61,233.4,13.22596101]
[1733436692772,23.776884,233.56,233.34,13.22596101]
[1733436693000,23.776884,233.56,233.34,13.86844508]
[1733436693183,23.776884,233.54,233.34,0.64248407]
[1733436693508,23.776884,233.54,233.33,1.574]
[1733436694607,23.776884,233.52,233.33,1.574]
[1733436694894,23.776884,233.5,233.29,13.22596101]
[1733436695680,23.776884,233.5,233.31,270.0]
[1733436696280,23.776884,233.5,233.32,0.64265623]
[1733436696610,23.776884,233.5,233.33,13.22596101]
[1733436697083,23.776884,233.5,233.31,13.22596101]
[1733436697285,23.776884,233.5,233.32,0.64259831]
[1733436697485,23.776884,233.5,233.3,13.22596101]
[1733436697911,6.6081,233.49,233.26,1.6001]
[1733436698197,6.6081,233.45,233.22,10.719]
[1733436698401,23.776884,233.44,233.23,13.22596101]
[1733436698704,23.776884,233.44,233.25,13.22596101]
[1733436699091,23.776884,233.44,233.23,0.64282449]
[1733436699274,23.776884,233.44,233.24,13.22596101]
[1733436699482,23.776884,233.44,233.3,13.22596101]
[1733436699696,6.6081,233.45,233.3,13.22596101]
[1733436700905,23.776884,233.44,233.28,13.22596101]
[1733436701084,6.6081,233.45,233.28,13.22596101]